bitfinex-derivatives/quotes_BTCF0:USTF0_20250718
["timestamp","ask_amount","ask_price","bid_price","bid_amount"]
[1752802713063,0.68893407,120520.0,120510.0,0.7889221]
[1752802713262,1.31909407,120520.0,120510.0,0.81097017]
[1752802713766,0.68893407,120520.0,120510.0,0.64514807]
[1752802713959,1.31909407,120520.0,120510.0,0.64514807]
[1752802714162,1.31909407,120520.0,120510.0,0.81097017]
[1752802714766,1.31909407,120520.0,120510.0,0.64514807]
[1752802715367,1.31909407,120520.0,120510.0,0.2623]
[1752802715960,1.31909407,120520.0,120510.0,0.81097017]
[1752802717166,1.31805407,120520.0,120510.0,0.81836147]
[1752802718065,0.68893407,120520.0,120510.0,0.81836147]
[1752802718265,1.31761407,120520.0,120510.0,0.81836147]
[1752802718967,0.68893407,120520.0,120510.0,0.81836147]
[1752802719168,1.31713407,120520.0,120510.0,0.81836147]
[1752802720064,0.68893407,120520.0,120510.0,0.81836147]
[1752802720464,0.002,120520.0,120510.0,1.28063478]
[1752802720669,0.62964,120520.0,120510.0,1.28063478]
[1752802721070,0.62964,120520.0,120510.0,1.78063478]
[1752802721272,0.7954484,120520.0,120510.0,1.78063478]
[1752802721468,0.7954484,120520.0,120510.0,1.33296578]
[1752802721769,0.8294684,120520.0,120510.0,1.00159861]
[1752802721962,0.8294684,120520.0,120510.0,0.95755493]
[1752802722162,0.8294684,120520.0,120510.0,0.83577641]
[1752802722371,0.8294684,120520.0,120510.0,1.00159861]
[1752802722871,0.8294684,120520.0,120510.0,1.36239861]
[1752802723171,0.8294684,120520.0,120510.0,1.33296588]
[1752802723967,0.2018284,120520.0,120510.0,1.33296588]
[1752802724163,0.8283884,120520.0,120510.0,1.33296588]
[1752802725870,0.002,120520.0,120510.0,1.33296588]
[1752802726069,0.62796,120520.0,120510.0,1.33296588]
[1752802726767,0.62796,120520.0,120510.0,1.78063488]
[1752802726973,0.62748,120520.0,120510.0,1.78063488]
[1752802727173,0.62748,120520.0,120510.0,1.7365912]
[1752802727573,0.793289,120520.0,120510.0,1.78074448]
[1752802727774,0.62748,120520.0,120510.0,1.78074448]
[1752802727970,0.01705,120540.0,120530.0,0.2696153]
[1752802728172,1.12927647,120540.0,120530.0,1.62679098]
[1752802728377,1.44922614,120540.0,120530.0,0.65252668]
[1752802728577,1.44906614,120540.0,120530.0,0.65252668]
[1752802728777,1.44906614,120540.0,120530.0,0.81832198]
[1752802728978,1.44878614,120540.0,120530.0,0.81832198]
[1752802729173,0.66132464,120540.0,120530.0,0.81832198]
[1752802729379,1.45302614,120540.0,120530.0,1.31832198]
[1752802729878,1.45002614,120540.0,120530.0,1.31832198]
[1752802730075,1.45102614,120540.0,120530.0,1.31832198]
[1752802732186,1.45102614,120540.0,120530.0,1.33303533]
[1752802733391,1.28524464,120540.0,120530.0,1.33303533]
[1752802733691,1.28404464,120540.0,120530.0,1.33303533]
[1752802733884,0.53649647,120540.0,120530.0,1.69383533]
[1752802734188,1.15997647,120540.0,120530.0,1.69383533]
[1752802734489,1.15997647,120540.0,120530.0,1.33303533]
[1752802734784,0.53649647,120540.0,120530.0,1.69383533]
[1752802734991,1.15997647,120540.0,120530.0,1.69383533]
[1752802735489,1.32575857,120540.0,120530.0,2.14150433]
[1752802735690,0.64253,120540.0,120530.0,2.14150433]
[1752802736585,0.01905,120540.0,120530.0,1.69383533]
[1752802736790,0.64173,120540.0,120530.0,2.14150433]
[1752802737491,0.62468,120540.0,120530.0,2.14150433]
[1752802738393,0.62368,120540.0,120530.0,2.14250433]
[1752802738783,0.62356,120540.0,120530.0,2.14250433]
[1752802738986,0.62356,120540.0,120530.0,1.16824003]
[1752802738987,1.77057757,120540.0,120530.0,1.16824003]
[1752802739193,0.70074857,120540.0,120530.0,1.10613803]
[1752802739391,1.14841757,120540.0,120530.0,0.60613803]
[1752802739591,1.63234705,120540.0,120530.0,0.030388]
[1752802739896,2.25442705,120540.0,120530.0,0.02304628]
[1752802740692,2.25542705,120540.0,120530.0,0.02304628]
[1752802741299,2.25442705,120540.0,120530.0,0.02304628]
[1752802741501,2.25642705,120540.0,120530.0,0.02304628]
[1752802743186,2.25842705,120540.0,120530.0,0.02204628]
[1752802743790,1.88634705,120540.0,120530.0,2.628e-05]
[1752802743994,0.1657958,120530.0,120520.0,0.029388]
[1752802744297,1.60172008,120530.0,120520.0,0.029388]
[1752802744495,0.12372938,120530.0,120520.0,1.2724165]
[1752802744697,0.005,120540.0,120530.0,0.4345458]
[1752802744889,0.65786219,120540.0,120530.0,0.3422489]
[1752802745086,0.61580957,120540.0,120530.0,0.7030489]
[1752802745390,1.23648957,120540.0,120530.0,0.8688447]
[1752802745694,1.23352957,120540.0,120530.0,0.8688447]
[1752802745893,1.23324957,120540.0,120530.0,0.83944514]
[1752802746094,1.23124957,120540.0,120530.0,0.83944514]
[1752802746997,0.61080957,120540.0,120530.0,0.83944514]
[1752802747196,1.23116957,120540.0,120530.0,0.82474426]
[1752802747598,0.61080957,120540.0,120530.0,0.82474426]
[1752802747797,1.23084957,120540.0,120530.0,0.82474426]
[1752802749698,1.39663167,120540.0,120530.0,0.82474426]
[1752802749895,0.61080957,120540.0,120530.0,0.82474426]
[1752802750095,1.23084957,120540.0,120530.0,0.82474426]
[1752802750599,1.39663167,120540.0,120530.0,0.65894846]
[1752802750790,0.77659167,120540.0,120530.0,0.65894846]
[1752802751195,1.39663167,120540.0,120530.0,0.65894846]
[1752802752698,1.84430067,120540.0,120530.0,0.59846846]
[1752802752898,1.84430067,120540.0,120530.0,0.56840846]
[1752802753393,1.39663167,120540.0,120530.0,0.56840846]
[1752802753789,1.39863167,120540.0,120530.0,0.56840846]
[1752802754201,1.39863167,120540.0,120530.0,0.59846846]
[1752802754598,1.39963167,120540.0,120530.0,0.65894846]
[1752802754798,1.23384957,120540.0,120530.0,0.82474476]
[1752802756302,1.39963257,120540.0,120530.0,0.65894846]
[1752802757000,1.39963257,120540.0,120530.0,0.82474516]
[1752802757200,1.39963257,120540.0,120530.0,0.83944604]
[1752802758200,0.61380957,120540.0,120530.0,0.83944604]
[1752802758503,1.23372957,120540.0,120530.0,0.83944604]
[1752802758806,1.39951257,120540.0,120530.0,0.83944604]
[1752802759400,1.39951257,120540.0,120530.0,0.67364934]
[1752802759702,1.39651257,120540.0,120530.0,0.83944604]
[1752802760002,1.39651257,120540.0,120530.0,0.67364934]
[1752802761701,0.12372938,120540.0,120530.0,1.28711514]
[1752802761897,0.74360938,120540.0,120530.0,0.83944614]
[1752802762205,0.61988,120540.0,120530.0,1.2430158]
[1752802762802,0.61988,120540.0,120530.0,1.7430158]
[1752802763003,0.61988,120540.0,120530.0,1.2953468]
[1752802763303,0.61988,120540.0,120530.0,1.7430158]
[1752802763604,0.61988,120540.0,120530.0,1.7440158]
[1752802767494,0.61988,120540.0,120530.0,1.78815388]
[1752802768200,0.61988,120540.0,120530.0,1.34048488]
[1752802768400,0.61988,120540.0,120530.0,1.78815388]
[1752802768902,0.61988,120540.0,120530.0,1.7440158]
[1752802769102,0.61988,120540.0,120530.0,1.78817599]
[1752802769601,0.2072191,120550.0,120540.0,0.2678331]
[1752802769794,1.31409929,120550.0,120540.0,0.86324339]
[1752802770495,1.31409929,120550.0,120540.0,0.8190832]
[1752802771104,1.27265699,120550.0,120540.0,0.8190832]
[1752802771401,1.10688019,120550.0,120540.0,0.8190832]
[1752802771601,1.27264939,120550.0,120540.0,0.86324339]
[1752802772102,1.27264939,120550.0,120540.0,0.83380329]
[1752802772704,1.10688019,120550.0,120540.0,0.83380329]
[1752802772904,1.10688019,120550.0,120540.0,1.21530961]
[1752802773204,1.10688019,120550.0,120540.0,0.83380329]
[1752802773504,1.10688019,120550.0,120540.0,1.21530961]
[1752802774802,1.27264959,120550.0,120540.0,1.21530961]
[1752802775907,1.10688019,120550.0,120540.0,1.21530961]
[1752802776108,1.10680019,120550.0,120540.0,0.83380329]
[1752802776310,1.10680019,120550.0,120540.0,1.21530961]
[1752802777209,1.10680019,120550.0,120540.0,0.83380329]
[1752802777509,1.27256959,120550.0,120540.0,1.21530961]
[1752802777905,1.10680019,120550.0,120540.0,1.21530961]
[1752802778711,1.27256959,120550.0,120540.0,1.21530961]
[1752802780307,0.00847632,120560.0,120540.0,1.04952651]
[1752802780513,0.165729,120580.0,120570.0,0.10205]
[1752802780714,1.10664019,120580.0,120570.0,0.62386]
[1752802780913,1.2398558,120580.0,120570.0,0.62386]
[1752802781113,0.6202958,120580.0,120570.0,1.2896019]
[1752802781612,0.49543333,120580.0,120570.0,1.31907619]
[1752802781812,1.11499333,120580.0,120570.0,1.70058251]
[1752802782113,1.10664019,120580.0,120570.0,1.70058251]
[1752802782509,1.10664019,120580.0,120570.0,1.78298403]
[1752802782910,0.61956,120580.0,120570.0,1.78298403]
[1752802783117,0.61956,120580.0,120570.0,1.8123949]
[1752802783313,0.62156,120580.0,120570.0,1.8123949]
[1752802783615,0.002,120580.0,120570.0,1.76227771]
[1752802783809,0.2485634,120600.0,120570.0,2.06091033]
[1752802784006,0.2485634,120600.0,120590.0,0.59888]
[1752802784007,0.5843634,120600.0,120590.0,0.59888]
[1752802784205,0.63497556,120600.0,120590.0,0.62386]
[1752802784417,1.40573575,120600.0,120590.0,0.26306]
[1752802785017,1.40773575,120600.0,120590.0,0.62386]
[1752802785222,1.79224207,120600.0,120590.0,0.62386]
[1752802785722,1.79024207,120600.0,120590.0,0.62386]
[1752802785918,0.005,120600.0,120590.0,0.7895744]
[1752802786109,0.005,120600.0,120590.0,1.17108072]
[1752802786416,0.005,120600.0,120590.0,1.67108072]
[1752802786718,0.6244,120600.0,120590.0,1.29767859]
[1752802787110,1.1472,120620.0,120610.0,0.1656869]
[1752802787310,0.18432357,120650.0,120640.0,0.01208]
[1752802787516,1.14074357,120650.0,120640.0,0.64456632]
[1752802787813,0.63186716,120650.0,120640.0,0.4287057]
[1752802788115,0.79749916,120650.0,120640.0,0.7895057]
[1752802788416,1.17900548,120650.0,120640.0,0.62386]
[1752802788618,1.17900548,120650.0,120640.0,0.7895057]
[1752802788813,1.41681916,120650.0,120640.0,0.62386]
[1752802789213,0.80049916,120650.0,120640.0,0.62386]
[1752802789417,1.41981916,120650.0,120640.0,0.62386]
[1752802789913,1.42795571,120650.0,120640.0,0.62386]
[1752802790118,1.43095571,120650.0,120640.0,0.62386]
[1752802790718,0.81163571,120650.0,120640.0,0.62386]
[1752802790918,1.43083571,120650.0,120640.0,0.62386]
[1752802792019,0.81163571,120650.0,120640.0,0.62386]
[1752802792221,1.43083571,120650.0,120640.0,0.62386]
[1752802792415,1.43083571,120650.0,120640.0,0.7895057]
[1752802792819,1.43083571,120650.0,120640.0,0.69062794]
[1752802794822,0.81163571,120650.0,120640.0,1.30266426]
[1752802795123,0.81163571,120650.0,120640.0,0.69062794]
[1752802795327,1.43075571,120650.0,120640.0,0.32982794]
[1752802795524,0.81163571,120650.0,120640.0,0.69062794]
[1752802795721,1.43075571,120650.0,120640.0,0.69062794]
[1752802795923,0.81163571,120650.0,120640.0,0.85627364]
[1752802796220,1.43075571,120650.0,120640.0,0.79830364]
[1752802796421,1.43075571,120650.0,120640.0,0.69203794]
[1752802797925,1.41422504,120650.0,120640.0,0.69203794]
[1752802798420,0.1656457,120640.0,120630.0,0.1565]
[1752802798615,1.45991651,120640.0,120630.0,0.1565]
[1752802798820,0.1656595,120630.0,120620.0,0.1565]
[1752802799016,0.1656732,120620.0,120610.0,0.1565]
[1752802799220,0.1656732,120620.0,120600.0,0.3608]
[1752802799221,0.1656869,120610.0,120600.0,0.1565]
[1752802799416,1.09915771,120610.0,120600.0,0.13223]
[1752802799627,0.65276709,120610.0,120600.0,0.7863707]
[1752802799927,0.65276709,120610.0,120600.0,0.62067]
[1752802800224,1.27176709,120610.0,120600.0,0.7863707]
[1752802800420,0.15128019,120610.0,120600.0,1.23276132]
[1752802800625,0.1656832,120620.0,120610.0,0.25987]
[1752802800820,1.27176339,120620.0,120610.0,0.7863569]
[1752802801026,1.39683362,120620.0,120610.0,0.7863569]
[1752802801417,1.07987023,120620.0,120610.0,0.7863569]
[1752802801623,0.12507023,120620.0,120610.0,1.23274752]
[1752802801828,0.01708258,120640.0,120630.0,0.4255295]
[1752802802120,1.12316277,120640.0,120630.0,0.7863295]
[1752802802320,0.66980847,120640.0,120630.0,0.62067]
[1752802802519,1.28880847,120640.0,120630.0,0.7863295]
[1752802802717,0.50416277,120640.0,120630.0,0.7863295]
[1752802803115,0.35288258,120640.0,120630.0,0.73841931]
[1752802803329,0.97216258,120640.0,120630.0,0.73841931]
[1752802803531,0.51852828,120640.0,120630.0,0.73841931]
[1752802803734,0.51852828,120640.0,120630.0,1.18480993]
[1752802803735,1.13764828,120640.0,120630.0,1.18480993]
[1752802804330,1.13764828,120640.0,120630.0,1.23841931]
[1752802804532,1.13764828,120640.0,120630.0,1.23941931]
[1752802805223,1.13764828,120640.0,120630.0,1.26368931]
[1752802805625,1.15004828,120640.0,120630.0,1.26368931]
[1752802806831,1.1208057,120640.0,120630.0,1.26368931]
[1752802807031,0.2070487,120650.0,120640.0,0.4255157]
[1752802807232,0.5428487,120650.0,120640.0,1.23270632]
[1752802807432,1.1623287,120650.0,120640.0,1.23270632]
[1752802807731,0.2070285,120660.0,120650.0,0.425502]
[1752802807927,0.1656183,120660.0,120650.0,0.786302]
[1752802808123,0.0828083,120670.0,120650.0,1.06706062]
[1752802808431,0.7619011,120670.0,120660.0,0.7862883]
[1752802808625,1.3941011,120670.0,120660.0,1.25572665]
[1752802808829,0.7108021,120670.0,120660.0,0.80933603]
[1752802809030,1.4695521,120670.0,120660.0,0.7862883]
[1752802809224,0.8359121,120670.0,120660.0,0.62067]
[1752802809425,0.4596723,120670.0,120660.0,0.7862883]
[1752802809626,0.1342674,120680.0,120660.0,0.80934599]
[1752802809835,0.3482,120680.0,120670.0,0.7862745]
[1752802810027,0.37991,120680.0,120670.0,0.7862745]
[1752802810332,1.10444,120680.0,120670.0,0.7862745]
[1752802810629,1.17318,120680.0,120670.0,0.80936382]
[1752802811230,0.50502,120680.0,120670.0,0.80936382]
[1752802811432,1.10984,120680.0,120670.0,0.80936382]
[1752802811637,1.05347,120680.0,120670.0,1.30936382]
[1752802811836,1.02272,120680.0,120670.0,1.75575444]
[1752802812133,1.01208,120680.0,120670.0,1.30936382]
[1752802812325,0.56348,120680.0,120670.0,1.30936382]
[1752802812523,1.18162,120680.0,120670.0,1.30936382]
[1752802813235,0.50502,120680.0,120670.0,1.30936382]
[1752802813433,1.18398,120680.0,120670.0,1.30936382]
[1752802814128,1.4073508,120680.0,120670.0,0.75868932]
[1752802814329,1.30038764,120680.0,120670.0,0.52308932]
[1752802814734,1.97874764,120680.0,120670.0,0.58392]
[1752802814934,1.97874764,120680.0,120670.0,0.63223]
[1752802815130,1.97874764,120680.0,120670.0,0.13223]
[1752802815332,1.97898764,120680.0,120670.0,0.49303]
[1752802815532,1.97998764,120680.0,120670.0,0.13223]
[1752802815832,1.53359702,120680.0,120670.0,0.13223]
[1752802816136,1.53359702,120680.0,120670.0,0.3209544]
[1752802816336,1.53359702,120680.0,120670.0,0.1553499]
[1752802816637,1.89439702,120680.0,120670.0,0.1070399]
[1752802816839,1.89439702,120680.0,120670.0,0.08392]
[1752802817131,1.89539702,120680.0,120670.0,0.10704908]
[1752802817539,1.53459702,120680.0,120670.0,0.10704908]
[1752802817737,1.53459702,120680.0,120670.0,0.15120927]
[1752802817937,1.53459702,120680.0,120670.0,0.10704908]
[1752802818338,1.53459702,120680.0,120670.0,0.13634306]
[1752802819240,0.85599702,120680.0,120670.0,0.38677756]
[1752802819439,1.53443702,120680.0,120670.0,0.38677756]
[1752802819640,1.53443702,120680.0,120670.0,0.22117306]
[1752802819842,1.53443702,120680.0,120670.0,0.58197306]
[1752802820037,1.53443702,120680.0,120670.0,0.55770306]
[1752802820232,1.53443702,120680.0,120670.0,0.19690306]
[1752802820942,1.53387702,120680.0,120670.0,0.55770306]
[1752802821137,1.53387702,120680.0,120670.0,0.19690306]
[1752802821539,0.85599702,120680.0,120670.0,0.19690306]
[1752802821740,1.53387702,120680.0,120670.0,0.19690306]
[1752802822137,1.53387702,120680.0,120670.0,0.18465306]
[1752802822944,1.91460703,120680.0,120670.0,0.18465306]
[1752802823643,1.53407702,120680.0,120670.0,0.54545306]
[1752802824040,1.53407702,120680.0,120670.0,0.18465306]
[1752802824444,1.53407702,120680.0,120670.0,0.92618307]
[1752802824946,1.53407702,120680.0,120670.0,0.66926306]
[1752802825138,1.53407702,120680.0,120670.0,0.68412927]
[1752802826045,1.53407702,120680.0,120670.0,1.23046378]
[1752802826243,0.58689622,120680.0,120670.0,0.84973377]
[1752802826445,1.2879908,120680.0,120670.0,1.23046378]
[1752802826645,1.2879908,120680.0,120670.0,0.84973377]
[1752802826846,1.3572708,120680.0,120670.0,1.56485928]
[1752802827140,0.7310908,120680.0,120670.0,1.21334239]
[1752802827339,1.7811308,120680.0,120670.0,0.6845722]
[1752802827540,1.92439976,120680.0,120670.0,0.6845722]
[1752802827938,1.90446975,120680.0,120670.0,0.6845722]
[1752802828138,1.90622975,120680.0,120670.0,0.6845722]
[1752802828337,1.37983895,120680.0,120670.0,0.6845722]
[1752802828541,1.76056896,120680.0,120670.0,0.3083822]
[1752802828749,1.38327895,120680.0,120670.0,0.6691822]
[1752802829048,1.38327895,120680.0,120670.0,0.3083822]
[1752802829349,1.76500896,120680.0,120670.0,0.3083822]
[1752802829550,1.38327895,120680.0,120670.0,0.3083822]
[1752802829951,1.76400896,120680.0,120670.0,0.3083822]
[1752802830150,1.38327895,120680.0,120670.0,0.3083822]
[1752802830344,1.19968895,120680.0,120670.0,0.4739867]
[1752802830549,1.20124895,120680.0,120670.0,0.80557358]
[1752802830751,1.07691,120680.0,120670.0,1.18630359]
[1752802830949,0.38191,120680.0,120670.0,0.86966378]
[1752802831246,1.07691,120680.0,120670.0,1.23046378]
[1752802831440,1.07671,120680.0,120670.0,1.73046378]
[1752802831852,1.07671,120680.0,120670.0,1.34973377]
[1752802832149,1.07671,120680.0,120670.0,1.73046378]
[1752802832450,1.07671,120680.0,120670.0,1.34973377]
[1752802832647,1.07671,120680.0,120670.0,1.73046378]
[1752802832953,1.07471,120680.0,120670.0,1.73346378]
[1752802833149,0.04249,120690.0,120680.0,0.5092768]
[1752802833354,0.05079945,120700.0,120690.0,0.4264771]
[1752802833544,0.48860945,120700.0,120690.0,0.68666669]
[1752802833849,1.20663945,120700.0,120690.0,1.22034876]
[1752802834052,1.20667945,120700.0,120690.0,1.05477166]
[1752802834253,0.51243945,120700.0,120690.0,1.22034876]
[1752802834453,0.51243945,120700.0,120690.0,0.67404165]
[1752802834652,1.20631945,120700.0,120690.0,1.72034876]
[1752802834957,1.20631945,120700.0,120690.0,1.33961875]
[1752802835148,0.51243945,120700.0,120690.0,0.81324165]
[1752802835348,1.26413945,120700.0,120690.0,0.81324165]
[1752802835755,1.26513945,120700.0,120690.0,0.81324165]
[1752802835948,1.20819945,120700.0,120690.0,0.67404165]
[1752802836148,1.20819945,120700.0,120690.0,1.12000944]
[1752802836349,1.20819945,120700.0,120690.0,0.67404165]
[1752802836648,1.27339731,120700.0,120690.0,0.67404165]
[1752802836951,1.33033731,120700.0,120690.0,0.67404165]
[1752802837144,1.33033731,120700.0,120690.0,0.64482908]
[1752802837549,0.63657731,120700.0,120690.0,0.81040618]
[1752802837755,1.32969731,120700.0,120690.0,1.25637397]
[1752802838151,1.32138786,120700.0,120690.0,0.81040618]
[1752802838452,1.26344786,120700.0,120690.0,0.81040618]
[1752802839357,1.26344786,120700.0,120690.0,1.25637397]
[1752802839655,1.27356786,120700.0,120690.0,1.25637397]
[1752802839857,1.27356786,120700.0,120690.0,0.81040618]
[1752802840756,1.16192,120700.0,120690.0,0.81040618]
[1752802840951,1.16192,120700.0,120690.0,1.25637397]
[1752802841354,1.16192,120700.0,120690.0,0.81040618]
[1752802841654,1.22833569,120700.0,120690.0,1.75637397]
[1752802841851,1.22833569,120700.0,120690.0,1.31040618]
[1752802842159,1.22993569,120700.0,120690.0,1.75637397]
[1752802842352,0.81374569,120700.0,120690.0,1.31040618]
[1752802842553,1.14954569,120700.0,120690.0,1.33232219]
[1752802842760,1.15066569,120700.0,120690.0,1.1217]
[1752802843058,0.44470569,120700.0,120690.0,1.31141023]
[1752802843356,1.15206569,120700.0,120690.0,1.31141023]
[1752802843555,0.50126569,120700.0,120690.0,1.75737802]
[1752802843755,0.50126569,120700.0,120690.0,1.31141023]
[1752802843955,0.52509569,120700.0,120690.0,1.33334634]
[1752802844152,1.23733569,120700.0,120690.0,1.77931413]
[1752802844357,1.21334569,120700.0,120690.0,1.77931413]
[1752802844748,0.50126569,120700.0,120690.0,1.77931413]
[1752802844951,0.07852569,120700.0,120690.0,1.77931413]
[1752802845160,0.77813569,120700.0,120690.0,1.77931413]
[1752802845457,0.87718569,120700.0,120690.0,1.77931413]
[1752802845652,0.90101569,120700.0,120690.0,1.61373703]
[1752802845957,0.94646569,120700.0,120690.0,1.59180092]
[1752802846148,1.11202929,120700.0,120690.0,1.59180092]
[1752802846351,1.50576929,120700.0,120690.0,0.78503313]
[1752802846552,1.34020569,120700.0,120690.0,0.78503313]
[1752802846754,1.50576929,120700.0,120690.0,0.78503313]
[1752802846958,1.50576929,120700.0,120690.0,1.16776924]
[1752802847154,1.34020569,120700.0,120690.0,0.3142457]
[1752802847355,1.50576929,120700.0,120690.0,0.3142457]
[1752802847652,1.21270569,120700.0,120690.0,0.479823]
[1752802847960,1.21270569,120700.0,120690.0,0.92579079]
[1752802848155,0.02383,120710.0,120700.0,0.1655636]
[1752802848360,0.33017257,120720.0,120710.0,0.2609]
[1752802848657,0.8030815,120720.0,120710.0,0.30702111]
[1752802848962,1.5156403,120720.0,120710.0,0.30702111]
[1752802849362,1.5733003,120720.0,120710.0,0.30702111]
[1752802849564,1.5753003,120720.0,120710.0,0.30702111]
[1752802849955,0.8630203,120720.0,120710.0,0.30702111]
[1752802850156,1.5745803,120720.0,120710.0,0.30702111]
[1752802850363,1.64058895,120720.0,120710.0,0.66782111]
[1752802850558,1.64058895,120720.0,120710.0,0.30702111]
[1752802851360,1.64258895,120720.0,120710.0,0.30702111]
[1752802852164,1.58460895,120720.0,120710.0,0.30702111]
[1752802852760,1.63943895,120720.0,120710.0,0.30702111]
[1752802854166,2.00023895,120720.0,120710.0,0.30702111]
[1752802854366,1.63943895,120720.0,120710.0,0.30702111]
[1752802854562,1.63943895,120720.0,120710.0,0.3142457]
[1752802854860,0.92791895,120720.0,120710.0,0.3142457]
[1752802855061,0.92791895,120720.0,120710.0,0.6750457]
[1752802855270,0.87308895,120720.0,120710.0,0.69473497]
[1752802855570,1.58304895,120720.0,120710.0,1.05553497]
[1752802855954,1.58304895,120720.0,120710.0,0.6750457]
[1752802856163,1.58304895,120720.0,120710.0,1.05553497]
[1752802856562,1.58304895,120720.0,120710.0,0.6750457]
[1752802856767,0.86467378,120720.0,120710.0,1.22108487]
[1752802856966,1.40909758,120720.0,120710.0,0.8405956]
[1752802857271,0.88164128,120720.0,120710.0,0.69701833]
[1752802857462,0.86467388,120720.0,120710.0,0.69701833]
[1752802857661,1.41025758,120720.0,120710.0,0.69701833]
[1752802857867,1.41233758,120720.0,120710.0,0.69701833]
[1752802858063,1.41233758,120720.0,120710.0,1.05553497]
[1752802858262,1.41233758,120720.0,120710.0,0.6750457]
[1752802858462,1.41233758,120720.0,120710.0,1.05553497]
[1752802858766,1.41233758,120720.0,120710.0,0.6750457]
[1752802859165,0.36407758,120720.0,120710.0,1.22108497]
[1752802859361,1.01221758,120720.0,120710.0,1.22108497]
[1752802859660,1.01221758,120720.0,120710.0,1.22944184]
[1752802859661,0.29405758,120720.0,120710.0,1.22944184]
[1752802859856,0.004,120720.0,120710.0,1.72944184]
[1752802860063,0.72188,120720.0,120710.0,1.72944184]
[1752802860466,0.004,120720.0,120710.0,1.77360203]
[1752802861268,0.004,120720.0,120710.0,1.39311276]
[1752802861572,0.004,120720.0,120710.0,1.77360203]
[1752802861874,0.72128,120720.0,120710.0,1.72108497]
[1752802862071,0.004,120720.0,120710.0,1.72108497]
[1752802862372,0.88937,120740.0,120730.0,0.4215526]
[1752802862578,0.50541,120740.0,120730.0,1.20893346]
[1752802862762,1.5157525,120740.0,120730.0,0.80648573]
[1752802862966,1.5160325,120740.0,120730.0,0.28016313]
[1752802863161,0.5838936,120740.0,120730.0,1.1869752]
[1752802863572,1.2816736,120740.0,120730.0,1.20893366]
[1752802863769,0.28862884,120740.0,120730.0,1.20893366]
[1752802863969,0.72252,120740.0,120730.0,1.20893366]
[1752802864166,0.4021635,120780.0,120730.0,1.20893366]
[1752802864167,0.40699,120790.0,120770.0,0.01227]
[1752802864369,0.04431,120780.0,120770.0,0.291108]
[1752802864567,0.16848516,120780.0,120770.0,0.651908]
[1752802864771,1.16164,120780.0,120770.0,0.61683]
[1752802864965,1.35689158,120780.0,120770.0,0.61683]
[1752802865375,0.58382158,120780.0,120770.0,1.16278727]
[1752802865572,1.31062158,120780.0,120770.0,1.16278727]
[1752802865873,0.22356158,120780.0,120770.0,1.16278727]
[1752802866067,0.89591158,120780.0,120770.0,1.16278727]
[1752802866776,0.12460158,120780.0,120770.0,1.16278727]
[1752802867170,0.02446,120790.0,120780.0,0.4214843]
[1752802867370,0.430614,120800.0,120790.0,0.13039]
[1752802867566,0.44308722,120800.0,120790.0,0.25603]
[1752802867871,0.43145,120820.0,120790.0,0.99731927]
[1752802868075,0.18301922,120820.0,120810.0,0.80193247]
[1752802868377,0.01152,120830.0,120820.0,0.4214295]
[1752802868672,1.14867922,120840.0,120830.0,0.4214158]
[1752802868877,0.2182294,120850.0,120840.0,0.22032]
[1752802869073,1.2845094,120850.0,120840.0,0.25603]
[1752802869382,0.64203746,120860.0,120850.0,0.1653584]
[1752802869679,2.07446975,120860.0,120850.0,0.25603]
[1752802869871,1.32891227,120860.0,120850.0,0.25603]
[1752802870072,2.06023227,120860.0,120850.0,0.25603]
[1752802870469,1.26964089,120860.0,120850.0,0.25603]
[1752802870674,2.00909923,120860.0,120850.0,0.25603]
[1752802871074,1.27777923,120860.0,120850.0,0.23259]
[1752802871374,0.4080321,120840.0,120830.0,0.08097]
[1752802871571,0.7688321,120840.0,120830.0,0.08097]
[1752802871767,1.22897471,120840.0,120830.0,0.08097]
[1752802871971,0.86817471,120840.0,120830.0,0.4214158]
[1752802872169,0.13586261,120840.0,120830.0,1.22708067]
[1752802872374,0.01152,120850.0,120840.0,0.5040786]
[1752802872578,0.74212,120850.0,120840.0,1.30974347]
[1752802872872,0.11496,120860.0,120850.0,0.4213885]
[1752802873077,0.38111,120860.0,120850.0,1.22705337]
[1752802873279,0.12472084,120860.0,120850.0,1.22705337]
[1752802873474,0.001,120860.0,120850.0,1.22705337]
[1752802873670,0.9774608,120880.0,120860.0,0.04942]
[1752802873878,0.1653311,120870.0,120860.0,1.06169487]
[1752802874173,0.1653311,120870.0,120860.0,0.61683]
[1752802874381,0.1768511,120870.0,120860.0,1.06169487]
[1752802874571,0.7437911,120870.0,120860.0,0.25603]
[1752802874872,1.1045911,120870.0,120860.0,0.14266]
[1752802875079,0.2096411,120870.0,120860.0,1.36623957]
[1752802875376,0.04431,120870.0,120860.0,1.72703957]
[1752802875675,0.01152,120870.0,120860.0,1.72703957]
[1752802875874,0.9046511,120870.0,120860.0,1.56169487]
[1752802876071,0.7437911,120870.0,120860.0,0.64266]
[1752802876271,0.7437911,120870.0,120860.0,0.58097]
[1752802876476,1.1358311,120870.0,120860.0,0.25603]
[1752802876674,0.43476,120870.0,120860.0,0.7821747]
[1752802876872,1.16244,120870.0,120860.0,0.7821747]
[1752802877072,0.82664,120870.0,120860.0,0.70089487]
[1752802877274,0.77199,120870.0,120860.0,1.25683354]
[1752802877577,0.77199,120870.0,120860.0,1.09148884]
[1752802877775,0.04431,120870.0,120860.0,0.61683]
[1752802877973,0.77099,120870.0,120860.0,1.09148899]
[1752802878175,0.9363211,120870.0,120860.0,1.56169487]
[1752802878376,0.77099,120870.0,120860.0,1.14662438]
[1752802878779,0.77099,120870.0,120860.0,1.31196918]
[1752802878980,0.7382,120870.0,120860.0,1.31196918]
[1752802879177,0.01152,120870.0,120860.0,1.31196918]
[1752802879373,0.73696,120870.0,120860.0,1.31196918]
[1752802879576,0.7687911,120870.0,120860.0,0.70567438]
[1752802879770,1.1331911,120870.0,120860.0,0.67588]
[1752802879976,1.4689911,120870.0,120860.0,0.70567531]
[1752802880271,1.57467732,120870.0,120860.0,0.4081]
[1752802880477,1.82467732,120870.0,120860.0,0.31406893]
[1752802880771,0.1871022,120840.0,120830.0,0.08097]
[1752802880972,1.71756707,120840.0,120830.0,0.02980207]
[1752802881175,0.67177296,120840.0,120830.0,0.02980207]
[1752802881382,1.11663783,120840.0,120830.0,0.02980207]
[1752802881580,0.1871295,120820.0,120810.0,0.12617638]
[1752802881775,0.5567695,120820.0,120810.0,0.15598088]
[1752802882083,1.40482108,120820.0,120810.0,0.05157088]
[1752802882380,1.41288157,120820.0,120810.0,0.0298045]
[1752802882576,1.47776267,120820.0,120810.0,0.0298045]
[1752802882777,1.19922754,120820.0,120810.0,0.0298045]
[1752802882976,1.47864267,120820.0,120810.0,0.0298045]
[1752802883382,1.47864267,120820.0,120810.0,0.1211345]
[1752802883582,1.92350754,120820.0,120810.0,0.1211345]
[1752802883881,1.19922754,120820.0,120810.0,0.05857088]